fUST/lending_fUST_20250824
["ID","MTS","AMOUNT","RATE_DAILY","PERIOD"]
[381045778,1755972632781,-1000.0,0.00028624,5]
[381045779,1755972632790,-1033.159576,0.000287,2]
[381045781,1755972632800,-500.0,0.00028736,2]
[381045783,1755972632809,-500.0,0.00028736,2]
[381045785,1755972632818,-1500.0,0.00028763,5]
[381045787,1755972632829,-271.0,0.00028777,2]
[381045789,1755972632838,-269.0,0.00028815,2]
[381045791,1755972632849,-1000.0,0.00028826,5]
[381045794,1755972632858,-1000.0,0.00028826,5]
[381045795,1755972632868,-1000.0,0.00028826,5]
[381045797,1755972632877,-269.0,0.00028826,2]
[381045799,1755972632887,-500.0,0.00028833,2]
[381045801,1755972632897,-269.0,0.00028876,2]
[381045803,1755972632906,-300.52885969,0.00028899,20]
[381045805,1755972632916,-269.0,0.00028941,2]
[381045808,1755972632925,-500.0,0.0002901,2]
[381045809,1755972632935,-681.33978062,0.00029033,5]
[381045812,1755972632948,-561.01946318,0.00029033,5]
[381045814,1755972632960,-257.6407562,0.00029033,5]
[381045816,1755972632969,-269.0,0.00029195,7]
[381045818,1755972632979,-500.0,0.00029284,2]
[381045820,1755972632988,-269.0,0.0002937,2]
[381045822,1755972632999,-1500.0,0.00029374,5]
[381045824,1755972633008,-334.39234493,0.00029374,5]
[381045826,1755972633019,-1165.60765507,0.00029374,5]
[381045828,1755972633032,-1500.0,0.00029374,5]
[381045830,1755972633042,-2000.0,0.00029581,5]
[381045832,1755972633051,-271.0,0.0002962,2]
[381045834,1755972633061,-385.0,0.00029647,2]
[381045836,1755972633071,-269.0,0.0002965,7]
[381045838,1755972633082,-271.0,0.0002976,7]
[381045840,1755972633091,-271.0,0.00029788,2]
[381045842,1755972633101,-160.0,0.00029871,2]
[381045844,1755972633111,-2000.0,0.00029922,5]
[381045846,1755972633122,-1961.5748825,0.00029922,5]
[381045848,1755972633133,-38.4251175,0.00029922,5]
[381045850,1755972633143,-428.11154472,0.00029922,5]
[381045905,1755972635888,199.0,0.00026749,20]
[381045923,1755972638079,-1626.62294181,0.00029922,5]
[381045924,1755972638089,-269.0,0.00029971,2]
[381045925,1755972638098,-228.20917819,0.00030129,5]
[381045926,1755972638113,-1070.00662886,0.00030129,5]
[381045927,1755972638123,-393.64392576,0.00030259,13]
[381045928,1755972638132,-500.0,0.00030349,7]
[381045929,1755972638142,-400.0,0.00030419,2]
[381045930,1755972638152,-500.0,0.0003047,5]
[381045931,1755972638161,-253.68244477,0.0003047,5]
[381045932,1755972638174,-648.43431198,0.0003047,5]
[381045933,1755972638184,-1656.642,0.0003067,2]
[381045934,1755972638193,-430.734,0.0003078,2]
[381045935,1755972638202,-257.299,0.000309,2]
[381045936,1755972638212,-340.0,0.00031421,2]
[381045937,1755972638221,-500.0,0.00031464,7]
[381045938,1755972638231,-2200.0,0.00031605,2]
[381045939,1755972638240,-393.64392576,0.00031986,17]
[381045940,1755972638250,-2077.55,0.00032,32]
[381045941,1755972638260,-197.322732,0.0003204,2]
[381045942,1755972638270,-321.0,0.000327,2]
[381045943,1755972638279,-931.72,0.00032876,2]
[381045944,1755972638289,-1135.65410832,0.00033407,2]
[381045945,1755972638299,-180.67038993,0.00033507,30]
[381045946,1755972638308,-500.0,0.00033542,7]
[381045947,1755972638318,-393.64392576,0.00033712,21]
[381045948,1755972638327,-408.0,0.0003378,2]
[381045949,1755972638336,-180.67038993,0.00033945,30]
[381045950,1755972638346,-1135.65410832,0.0003435,2]
[381045951,1755972638356,-155.87,0.000345,7]
[381045952,1755972638365,-931.72,0.00035068,120]
[381045953,1755972638375,-1135.65410832,0.00035294,2]
[381045954,1755972638384,-393.64392576,0.00035439,24]
[381045955,1755972638394,-237.2109271,0.00035516,2]
[381045956,1755972638403,-900.0,0.00035611,7]
[381045957,1755972638412,-206.0,0.0003569,30]
[381045958,1755972638422,-199.0,0.000358,120]
[381045959,1755972638431,-42628.7390701,0.00035969,3]
[381045960,1755972638440,-376.14580871,0.0003597,3]
[381045961,1755972638450,-207.70711954,0.0003597,3]
[381045962,1755972638459,-217.0334113,0.0003597,3]
[381045963,1755972638471,-541.29110172,0.00035973,5]
[381045964,1755972638481,-500.0,0.00035973,5]
[381045965,1755972638491,-500.0,0.00035973,5]
[381045966,1755972638501,-500.0,0.00035973,5]
[381045967,1755972638510,-500.0,0.00035973,5]
[381045968,1755972638519,-500.0,0.00035973,5]
[381045969,1755972638529,-500.0,0.00035973,5]
[381045970,1755972638538,-500.0,0.00035973,5]
[381045971,1755972638547,-500.31691585,0.00035973,5]
[381045972,1755972638557,-500.0,0.00035973,5]
[381045973,1755972638567,-500.40802418,0.00035973,5]
[381045974,1755972638576,-500.0,0.00035973,5]
[381045975,1755972638586,-500.0,0.00035973,5]
[381045976,1755972638595,-500.0,0.00035973,5]
[381045977,1755972638604,-500.0,0.00035973,5]
[381045978,1755972638613,-500.0,0.00035973,5]
[381045979,1755972638623,-500.0,0.00035973,5]
[381045980,1755972638633,-500.0,0.00035973,5]
[381045981,1755972638642,-500.0,0.00035973,5]
[381045982,1755972638652,-500.0,0.00035973,5]
[381045983,1755972638661,-249.40271836,0.00035973,2]
[381045984,1755972638671,-622.78125637,0.00035973,5]
[381045986,1755972638681,-500.0,0.00035973,5]
[381045987,1755972638691,-500.0,0.00035973,5]
[381045988,1755972638700,-633.49844171,0.00035973,5]
[381045989,1755972638709,-500.0,0.00035973,5]
[381045991,1755972638718,-500.0,0.00035973,5]
[381045993,1755972638727,-397.86447223,0.00035973,5]
[381045995,1755972638737,-500.0,0.00035973,5]
[381045997,1755972638747,-500.0,0.00035973,5]
[381045999,1755972638756,-500.0,0.00035973,5]
[381046001,1755972638766,-500.72801513,0.00035973,5]
[381046003,1755972638775,-500.0,0.00035973,5]
[381046005,1755972638784,-500.0,0.00035973,5]
[381046006,1755972638794,-500.0,0.00035973,5]
[381046007,1755972638804,-500.0,0.00035973,5]
[381046008,1755972638813,-500.0,0.00035973,5]
[381046009,1755972638822,-500.0,0.00035973,5]
[381046010,1755972638832,-500.0,0.00035973,5]
[381046011,1755972638841,-500.0,0.00035973,5]
[381046012,1755972638851,-500.0,0.00035973,5]
[381046013,1755972638860,-500.0,0.00035973,5]
[381046014,1755972638870,-500.0,0.00035973,5]
[381046015,1755972638879,-160.0,0.00035979,3]
[381046016,1755972638888,-844.50316758,0.00035979,3]
[381046017,1755972638898,-232.37252479,0.00035979,3]
[381046018,1755972638907,-529.05847148,0.00035979,3]
[381046019,1755972638916,-160.0,0.00035979,3]
[381046020,1755972638925,-160.0,0.00035989,3]
[381046021,1755972638935,-160.0,0.00035989,3]
[381046022,1755972638945,-617.56274249,0.00036099,15]
[381046023,1755972638954,-42628.7390701,0.00036099,3]
[381046024,1755972638963,-160.0,0.00036109,7]
[381046025,1755972638973,-844.50316758,0.00036109,7]
[381046026,1755972638982,-232.37252479,0.00036109,7]
[381046027,1755972638992,-187.78006525,0.00036109,7]
[381046028,1755972639002,-151.00000001,0.00036109,7]
[381046029,1755972639012,-151.0,0.00036109,7]
[381046030,1755972639022,-151.0,0.00036109,7]
[381046031,1755972639034,-300.0,0.00036109,7]
[381046032,1755972639044,-300.0,0.00036109,7]
[381046033,1755972639054,-500.0,0.00036109,7]
[381046034,1755972639063,-151.0,0.00036109,7]
[381046035,1755972639075,-300.0,0.00036109,7]
[381046036,1755972639085,-151.0,0.00036109,7]
[381046037,1755972639097,-198.0,0.00036109,7]
[381046038,1755972639110,-19897.22545671,0.00036109,7]
[381046039,1755972639119,-19187.29552238,0.00036109,7]
[381046040,1755972639128,-250.0,0.00036109,7]
[381046041,1755972639141,-151.0,0.0003611,7]
[381046042,1755972639151,-151.0,0.0003611,7]
[381046043,1755972639162,-151.55192868,0.0003611,7]
[381046044,1755972639171,-151.0,0.0003611,7]
[381046045,1755972639182,-500.0,0.0003611,7]
[381046046,1755972639191,-151.0,0.0003611,7]
[381046047,1755972639201,-151.0,0.0003611,7]
[381046048,1755972639210,-151.0,0.0003611,7]
[381046049,1755972639220,-151.0,0.0003611,7]
[381046050,1755972639230,-151.0,0.0003611,7]
[381046051,1755972639239,-844.50316758,0.0003611,7]
[381046052,1755972639249,-232.37252479,0.0003611,7]
[381046053,1755972639260,-529.05847148,0.0003611,7]
[381046054,1755972639269,-160.0,0.0003611,7]
[381046055,1755972639281,-151.0,0.0003611,7]
[381046056,1755972639290,-151.0,0.0003611,7]
[381046057,1755972639378,-151.0,0.0003611,7]
[381046058,1755972639388,-151.0,0.0003611,7]
[381046059,1755972639398,-151.0,0.0003611,2]
[381046060,1755972639409,-151.0,0.0003611,7]
[381046061,1755972639418,-151.0,0.0003611,2]
[381046062,1755972639428,-151.0,0.0003611,7]
[381046063,1755972639440,-151.0,0.0003611,7]
[381046064,1755972639450,-151.0,0.0003611,7]
[381046065,1755972639460,-151.0,0.0003611,7]
[381046066,1755972639470,-151.02367489,0.0003611,7]
[381046067,1755972639481,-151.00084181,0.0003611,7]
[381046068,1755972639491,-164.628817,0.00036115,2]
[381046069,1755972639503,-151.0,0.00036158,2]
[381046070,1755972639512,-567.2368401,0.00036164,30]
[381046071,1755972639525,-572.6969334,0.00036164,30]
[381046072,1755972639535,-1161.5738829,0.00036164,30]
[381046073,1755972639544,-500.0,0.00036173,5]
[381046074,1755972639554,-500.0,0.00036173,5]
[381046075,1755972639563,-500.0,0.00036173,5]
[381046076,1755972639573,-500.0,0.00036173,5]
[381046077,1755972639582,-199.0,0.00036185,30]
[381046078,1755972639593,-376.14580871,0.000362,7]
[381046079,1755972639602,-217.0334113,0.000362,7]
[381046080,1755972639612,-1135.65410832,0.00036237,2]
[381046081,1755972639621,-500.0,0.00036311,7]
[381046082,1755972639630,-206.0,0.0003633,30]
[381046083,1755972639640,-160.0,0.00036384,7]
[381046084,1755972639650,-246.18508065,0.00036384,7]
[381046085,1755972639661,-151.0,0.00036384,7]
[381046086,1755972639671,-500.0,0.00036384,7]
[381046087,1755972639681,-151.63330362,0.00036384,7]
[381046088,1755972639690,-151.0,0.00036384,7]
[381046089,1755972639699,-151.0,0.00036384,7]
[381046093,1755972639709,-245.0,0.00036384,7]
[381046096,1755972639718,-151.0,0.00036384,7]
[381046099,1755972639727,-152.38757461,0.00036384,7]
[381046101,1755972639736,-151.0,0.00036384,7]
[381046104,1755972639745,-151.0,0.00036384,7]
[381046107,1755972639754,-151.0,0.00036384,7]
[381046111,1755972639763,-151.0,0.00036384,7]
[381046114,1755972639772,-151.0,0.00036384,7]
[381046117,1755972639781,-151.0,0.00036384,7]
[381046120,1755972639791,-3440.35369822,0.00036421,10]
[381046123,1755972639799,-900.0,0.00036433,7]
[381046126,1755972639809,-42628.7390701,0.00036511,3]
[381046129,1755972639818,-1000.0,0.00036521,5]
[381046132,1755972639828,-1000.0,0.00036521,5]
[381046135,1755972639837,-1000.0,0.00036521,5]
[381046138,1755972639847,-1000.0,0.00036521,5]
[381046141,1755972639856,-1000.0,0.00036521,5]
[381046144,1755972639866,-1000.0,0.00036521,5]
[381046146,1755972639876,-1000.0,0.00036521,5]
[381046148,1755972639885,-520.03551996,0.00036521,5]
[381046150,1755972639894,-245.0,0.00036658,7]
[381046152,1755972639904,-500.0,0.00036658,7]
[381046154,1755972639914,-198.0,0.00036658,7]
[381046156,1755972639923,-151.0,0.00036658,7]
[381046158,1755972639932,-198.0,0.00036658,7]
[381046160,1755972639940,-151.0,0.00036658,7]
[381046161,1755972639949,-151.0,0.00036658,7]
[381046164,1755972639966,-151.0,0.00036658,7]
[381046166,1755972639983,-151.0,0.00036658,7]
[381046169,1755972640002,-293.8943201,0.00036712,30]
[381046172,1755972640020,-1000.0,0.00036721,5]
[381046175,1755972640044,-1000.0,0.00036721,5]
[381046178,1755972640061,-500.0,0.00036721,5]
[381046181,1755972640079,-500.0,0.00036764,5]
[381046183,1755972640094,-408.0,0.0003678,2]
[381046186,1755972640112,-500.0,0.00036932,7]
[381046189,1755972640132,-245.0,0.00036932,7]
[381046191,1755972640151,-248.40924379,0.00036932,7]
[381046193,1755972640163,-245.0,0.00036932,7]
[381046196,1755972640183,-245.0,0.00036932,7]
[381046198,1755972640198,-245.0,0.00036932,7]
[381046200,1755972640213,-206.0,0.0003697,30]
[381046203,1755972640226,-150.0,0.00036973,5]
[381046208,1755972640242,-54843.88104636,0.0003698,3]
[381046213,1755972640265,-30413.59709384,0.0003698,3]
[381046219,1755972640279,-62045.53528329,0.0003699,2]
[381046227,1755972640298,-25479.9763185,0.0003699,2]
[381046235,1755972640329,-12474.48839821,0.0003699,2]
[381046240,1755972640345,-600.0,0.00037056,2]
[381046243,1755972640359,-1500.0,0.00037068,5]
[381046248,1755972640374,-500.0,0.00037068,5]
[381046253,1755972640389,-500.0,0.00037068,5]
[381046256,1755972640403,-1500.0,0.00037068,5]
[381046261,1755972640417,-1500.0,0.00037068,5]
[381046264,1755972640433,-1500.0,0.00037068,5]
[381046269,1755972640449,-1500.0,0.00037068,5]
[381046274,1755972640464,-393.64392576,0.00037166,28]
[381046276,1755972640479,-500.0,0.00037173,5]
[381046279,1755972640494,-500.0,0.00037173,5]
[381046282,1755972640509,-187.01279824,0.00037173,5]
[381046284,1755972640524,-500.0,0.00037173,5]
[381046288,1755972640539,-1135.65410832,0.0003718,2]
[381046292,1755972640554,-42628.7390701,0.0003718,3]
[381046296,1755972640569,-844.50316758,0.000372,3]
[381046300,1755972640583,-232.37252479,0.000372,3]
[381046304,1755972640598,-194.43004113,0.000372,30]
[381046308,1755972640613,-161.00329835,0.000372,30]
[381046312,1755972640628,-500.0,0.00037206,7]
[381046316,1755972640642,-161.00329835,0.0003724,30]
[381046320,1755972640657,-42628.7390701,0.00037243,3]
[381046324,1755972640671,-900.0,0.00037255,7]
[381046328,1755972640684,-931.72,0.0003726,120]
[381046330,1755972640701,-500.0,0.00037268,5]
[381046333,1755972640716,-584.09703605,0.00037273,5]
[381046338,1755972640731,-500.0,0.00037273,5]
[381046341,1755972640746,-577.34170206,0.00037273,5]
[381046345,1755972640761,-500.0,0.00037273,5]
[381046348,1755972640776,-500.0,0.00037273,5]
[381046352,1755972640791,-500.0,0.00037273,5]
[381046355,1755972640806,-370000.0,0.000373,2]
[381046356,1755972640820,-15863.53,0.000373,14]
[381046357,1755972640835,-500.0,0.00037312,5]
[381046358,1755972640850,-600.0,0.00037442,2]
[381046371,1755972640959,-500.0,0.0003748,7]
[381046375,1755972640988,-150.0,0.000375,112]
[381046377,1755972640998,-300.0,0.00037521,5]
[381046379,1755972641007,-1432.008598,0.00037608,2]
[381046381,1755972641016,-1500.0,0.00037616,5]
[381046383,1755972641028,-206.0,0.0003762,30]
[381046385,1755972641041,-586.13444669,0.00037721,5]
[381046387,1755972641051,-1000.0,0.00037721,5]
[381046389,1755972641060,-500.0,0.00037754,7]
[381046391,1755972641071,-1000.0,0.00037821,5]
[381046393,1755972641081,-1000.0,0.00037821,5]
[381046395,1755972641091,-1000.0,0.00037821,5]
[381046397,1755972641101,-600.0,0.00037828,2]
[381046399,1755972641111,-2006.19374963,0.00038,30]
[381046401,1755972641121,-529.05847148,0.00038,3]
[381046403,1755972641130,-500.0,0.00038028,7]
[381046405,1755972641139,-900.0,0.00038077,7]
[381046407,1755972641149,-500.0,0.00038121,30]
[381046409,1755972641159,-584.10916113,0.00038121,30]
[381046411,1755972641168,-500.0,0.00038121,30]
[381046413,1755972641178,-502.90606374,0.00038121,30]
[381046415,1755972641187,-500.0,0.00038121,30]
[381046417,1755972641198,-500.0,0.00038121,30]
[381046419,1755972641208,-500.0,0.00038121,30]
[381046421,1755972641218,-500.0,0.00038121,30]
[381046423,1755972641229,-500.0,0.00038121,30]
[381046425,1755972641238,-500.0,0.00038121,30]
[381046427,1755972641248,-304.07993925,0.00038121,30]
[381046429,1755972641257,-500.0,0.00038121,30]
[381046431,1755972641267,-500.0,0.00038121,30]
[381046433,1755972641276,-500.0,0.00038121,30]
[381046435,1755972641286,-500.0,0.00038121,30]
[381046437,1755972641296,-216.30903859,0.00038121,30]
[381046439,1755972641306,-3440.35369821,0.00038161,10]
[381046441,1755972641316,-501.27875092,0.00038173,2]
[381046443,1755972641325,-1131.95382888,0.00038214,2]
[381046445,1755972641334,-206.0,0.0003826,30]
[381046447,1755972641343,-500.0,0.00038268,5]
[381046449,1755972641353,-500.0,0.00038302,7]
[381046451,1755972641363,-150.0,0.00038356,60]
[381046453,1755972641372,-500.0,0.00038368,5]
[381046455,1755972641381,-15863.53,0.000384,14]
[381046457,1755972641391,-157.296982,0.0003841,2]
[381046459,1755972641401,-640.75815153,0.0003848,8]
[381046461,1755972641410,-500.0,0.00038576,7]
[381046463,1755972641421,-157.296982,0.000386,7]
[381046465,1755972641431,-500.0,0.00038622,7]
[381046467,1755972641440,-160.0,0.00038654,3]
[381046469,1755972641449,-160.0,0.00038654,5]
[381046471,1755972641459,-1000.0,0.000388,2]
[381046473,1755972641468,-7240.18093038,0.000388,2]
[381046475,1755972641478,-500.0,0.0003885,7]
[381046477,1755972641487,-500.0,0.00038873,2]
[381046479,1755972641497,-500.0,0.00038873,5]
[381046481,1755972641506,-500.0,0.00038873,5]
[381046483,1755972641515,-484.23,0.00038887,60]
[381046485,1755972641525,-206.0,0.0003889,30]
[381046487,1755972641534,-393.64392576,0.00038892,32]
[381046489,1755972641543,-151.0,0.00038898,30]
[381046491,1755972641552,-151.0,0.00038898,30]
[381046493,1755972641561,-151.0,0.00038898,30]
[381046495,1755972641571,-1888.00000001,0.00038898,30]
[381046497,1755972641580,-156.587,0.00038898,30]
[381046499,1755972641589,-151.0,0.00038898,30]
[381046501,1755972641598,-151.0,0.00038898,30]
[381046503,1755972641608,-162.380719,0.00038898,30]
[381046505,1755972641617,-151.0,0.00038898,30]
[381046507,1755972641627,-300.0,0.00038898,30]
[381046509,1755972641636,-151.0,0.00038898,30]
[381046511,1755972641645,-168.3888056,0.00038898,30]
[381046513,1755972641654,-151.0,0.00038898,30]
[381046515,1755972641663,-300.0,0.00038898,30]
[381046517,1755972641672,-300.0,0.00038898,30]
[381046519,1755972641682,-174.61919141,0.00038898,30]
[381046521,1755972641690,-151.0,0.00038898,30]
[381046523,1755972641699,-151.0,0.00038898,30]
[381046525,1755972641709,-300.0,0.00038898,30]
[381046527,1755972641718,-300.0,0.00038898,30]
[381046528,1755972641727,-500.0,0.00038898,30]
[381046530,1755972641737,-181.08010149,0.00038898,30]
[381046532,1755972641746,-151.0,0.00038898,30]
[381046534,1755972641755,-300.0,0.00038898,30]
[381046536,1755972641765,-300.0,0.00038898,30]
[381046538,1755972641774,-500.0,0.00038898,30]
[381046540,1755972641783,-151.0,0.00038898,30]
[381046542,1755972641793,-151.0,0.00038898,30]
[381046544,1755972641802,-300.0,0.00038898,30]
[381046546,1755972641812,-300.0,0.00038898,30]
[381046548,1755972641821,-300.0,0.00038898,30]
[381046550,1755972641831,-500.0,0.00038898,30]
[381046552,1755972641840,-151.0,0.00038898,30]
[381046554,1755972641849,-300.0,0.00038898,30]
[381046556,1755972641858,-300.0,0.00038898,30]
[381046558,1755972641867,-300.0,0.00038898,30]
[381046560,1755972641877,-151.0,0.00038898,30]
[381046562,1755972641887,-300.0,0.00038898,30]
[381046564,1755972641896,-500.0,0.00038898,30]
[381046566,1755972641906,-151.0,0.00038898,30]
[381046567,1755972641916,-151.0,0.00038898,30]
[381046569,1755972641926,-300.0,0.00038898,30]
[381046571,1755972641936,-500.0,0.00038898,30]
[381046573,1755972641945,-151.0,0.00038898,30]
[381046575,1755972641955,-300.0,0.00038898,30]
[381046577,1755972641965,-500.0,0.00038898,30]
[381046579,1755972641974,-151.0,0.00038898,30]
[381046581,1755972641983,-300.0,0.00038898,30]
[381046583,1755972641992,-151.0,0.00038898,30]
[381046585,1755972642001,-151.0,0.00038898,30]
[381046587,1755972642010,-300.0,0.00038898,30]
[381046589,1755972642020,-16000.0,0.00038898,30]
[381046591,1755972642032,-16592.0,0.00038898,30]
[381046593,1755972642042,-17205.904,0.00038898,30]
[381046595,1755972642051,-17842.522448,0.00038898,30]
[381046597,1755972642061,-250.0,0.00038898,30]
[381046599,1755972642071,-18502.69577858,0.00038898,30]
[381046601,1755972642080,-19187.29552238,0.00038898,30]
[381046603,1755972642089,-250.0,0.00038898,30]
[381046605,1755972642099,-250.0,0.00038898,30]
[381046607,1755972642109,-250.0,0.00038898,30]
[381046609,1755972642119,-250.0,0.00038898,30]
[381046611,1755972642128,-250.0,0.00038898,30]
[381046613,1755972642138,-900.0,0.00038899,7]
[381046615,1755972642147,-500.0,0.000389,5]
[381046616,1755972642157,-204.18532328,0.000389,5]
[381046618,1755972642167,-528.7784817,0.000389,5]
[381046620,1755972642177,-500.0,0.000389,5]
[381046622,1755972642186,-132891.20787441,0.000389,60]
[381046624,1755972642195,-190533.95535675,0.000389,60]
[381046626,1755972642205,-173031.77209273,0.000389,60]
[381046627,1755972642215,-1266.5,0.000389,14]
[381046628,1755972642224,-563.21,0.000389,7]
[381046629,1755972642233,-1000.0,0.00039,120]
[381046630,1755972642242,-160.0,0.00039,10]
[381046631,1755972642250,-160.0,0.00039,30]
[381046633,1755972642258,-844.50316758,0.00039,10]
[381046635,1755972642266,-844.50316758,0.00039,30]
[381046636,1755972642274,-232.37252479,0.00039,10]
[381046638,1755972642282,-232.37252479,0.00039,30]
[381046639,1755972642292,-529.05847148,0.00039,10]
[381046640,1755972642301,-529.05847148,0.00039,30]
[381046641,1755972642311,-417.15472785,0.00039,10]
[381046642,1755972642321,-417.15472785,0.00039,30]
[381046643,1755972642404,-217.0334113,0.00039,30]
[381046644,1755972642423,-500.0,0.00039124,7]
[381046645,1755972642432,-154.0,0.000392,120]
[381046646,1755972642441,-500.0,0.00039398,7]
[381046647,1755972642451,-1000.0,0.00039421,2]
[381046648,1755972642460,-931.72,0.00039451,120]
[381046649,1755972642469,-720.0,0.00039605,30]
[381046650,1755972642479,-398.0,0.00039672,7]
[381046651,1755972642488,-153.0,0.00039726,30]
[381046652,1755972642497,-408.0,0.0003978,2]
[381046653,1755972642506,-15863.53,0.000398,14]
[381046654,1755972642514,-400.33526945,0.00039877,120]
[381046655,1755972642523,-151.0,0.000399,16]
[381046656,1755972642531,-325.52218844,0.000399,120]
[381046657,1755972642540,-3440.35369821,0.000399,10]
[381046658,1755972642550,-194.43,0.000399,120]
[381046659,1755972642559,-161.0,0.000399,120]
[381046660,1755972642569,-5000.0,0.0004,30]
[381046661,1755972642578,-160.0,0.0004,3]
[381046662,1755972642587,-500.0,0.0004,2]
[381046663,1755972642597,-200.0,0.0004,120]
[381046664,1755972642607,-483.76628861,0.0004,120]
[381046665,1755972642617,-260.4067663,0.0004,120]
[381046666,1755972642627,-207.0,0.0004,120]
[381046667,1755972642637,-3000.0,0.0004,120]
[381046669,1755972642647,-21996.56498557,0.0004,30]
[381046670,1755972642930,-432.09207337,0.00029373,2]
[381046671,1755972642940,-500.0,0.00029373,2]
[381046672,1755972642949,-202.03513458,0.00029373,2]
[381046674,1755972642958,-413.19927909,0.00029373,2]
[381046677,1755972642977,-12.15344974,0.00029373,2]
[381046679,1755972642987,-171.80527549,0.00029373,2]
[381046681,1755972642996,-2200.0,0.00036384,7]
[381046683,1755972643005,-6351.35316333,0.0004,30]
[381046685,1755972643633,-163.43,0.00036089,10]
[381046686,1755972643643,-103.35252291,0.0004,30]
[381046687,1755972643658,-1121.68094968,0.0004,30]
[381046688,1755972643669,-12530.23374579,0.0004,30]
[381046689,1755972643777,-151.0,0.00039421,2]
[381046690,1755972643787,-213.00200188,0.0004,30]
[381046691,1755972643810,-555.99799812,0.0004,30]
[381046692,1755972643823,-13712.94163257,0.0004,30]
[381046696,1755972646280,-776.43,0.00032876,2]
[381046697,1755972646289,-776.43,0.00035068,120]
[381046698,1755972646299,-72816.34705855,0.0004,30]
[381046699,1755972646334,-199.0,0.0003716,120]
[381046700,1755972646343,-603.08091026,0.0004,30]
[381046701,1755972646388,-438.63549823,0.0004,30]
[381046703,1755972646400,-50498.03240965,0.0004,30]
[381046704,1755972646411,-460.0,0.0004,30]
[381046705,1755972646423,-358.42606828,0.0004,30]
[381046707,1755972646434,-22828.12076791,0.0004,30]
[381047946,1755972670811,10000.01,0.00027435,2]
[381047949,1755972670834,2695.66094824,0.00027435,2]
[381049235,1755972718346,293.0,0.00027255,2]
[381049236,1755972721221,640.87180778,0.00025205,2]
[381049237,1755972733935,-293.0,0.00027555,2]
[381049238,1755972754000,-293.0,0.00027715,7]
[381049239,1755972773948,-293.0,0.00027777,2]
[381049240,1755972773977,-293.0,0.00027799,2]
[381049241,1755972776836,236.18635563,0.000199,2]
[381049242,1755972776897,236.18635545,0.00026806,6]
[381049243,1755972777040,236.18635545,0.0002508,2]
[381049244,1755972777186,236.18635545,0.00021627,2]
[381049245,1755972777393,236.18635545,0.00023353,2]
[381049246,1755972794064,-293.0,0.00027869,2]
[381049247,1755972794093,-293.0,0.00027884,2]
[381049248,1755972794126,-160.0,0.00027884,2]
[381049249,1755972794156,-844.50316758,0.00027884,2]
[381049250,1755972794186,-293.0,0.00027887,7]
[381049251,1755972794216,-293.0,0.00027933,2]
[381049252,1755972903743,500.0,0.00027397,5]
[381049253,1755972904020,2000.0,0.000253,2]
[381049255,1755972927361,160.0,0.00028,7]
[381049256,1755972932582,1830.29555746,0.00024463,2]
[381049257,1755972942980,209.94342727,0.000199,2]
[381049258,1755972943121,209.94342706,0.00023353,2]
[381049259,1755972943674,209.94342706,0.00021627,2]
[381049260,1755972943709,209.94342706,0.0002508,2]